Cogmind - Beta 15 @@@ ROGUE MODE // 2025.08.02 @ 15:47:55 Player: Mogwok Wargfriend Result: Destroyed by S-27 Virus with Autogun Performance ------------- Evolutions (4) 2000 Regions Visited (13) 2600 Robots Destroyed (228) 1140 Value Destroyed (9806) 9806 Prototype IDs (27) 540 Alien Tech Used (0) 0 Bonus (2939) 2939 TOTAL SCORE: 19025 Bonus ------- High Alert Combat Kills 1356 Follower Combat Kills 722 Entered Garrisons 400 Aligned with FarCom 300 Acquired ECA 300 Friendly Fire -139 Cogmind --------- Core Integrity 0/850 Matter 300/300 Energy 100/100 System Corruption 9% Temperature Cool (0) Movement Core (400) Ox7 Location -6/Lower Caves Parts ------- > --- POWER (1) -------- (None) > --- PROPULSION (4) --- (None) > --- UTILITY (7) ------ Large Storage Unit Target Analyzer > --- WEAPON (3) ------- Power Sword > --- INVENTORY (15) --- Improved Deuterium Engine Fission Core Fission Core Light Quantum Reactor Advanced Heat Sink Large Storage Unit High-capacity Matter Pod (200) Encrypted Comm Array Dimensional Node Initializer Peak State ------------ > --- POWER ------------ F-cell Engine > --- PROPULSION ------- Wheel Wheel Armored Huge Wheel > --- UTILITY ---------- Power Amplifier Advanced Heat Sink Large Storage Unit Advanced Targeting Computer Advanced Recoil Stabilizer Improved Medium Armor Plating Improved Hacking Suite > --- WEAPON ----------- Autogun Flak Gun Flak Gun > --- INVENTORY -------- Improved Deuterium Engine Fission Core Light Quantum Reactor Carbon-fiber Leg Compact Wheel Large Storage Unit High-capacity Matter Pod Encrypted Comm Array Target Analyzer Layered Light Armor Plating Flak Gun Gauss Cannon Rocket Launcher Power Sword [Rating: 60] Favorites ----------- Power Enhanced Nuclear Core Engine Improved Deuterium Engine Power Core Enhanced Nuclear Core Propulsion Armored Huge Wheel Treads Medium Treads Leg Aluminum Leg Wheel Armored Huge Wheel Flight Unit VTOL Module Utility Large Storage Unit Device Improved Heat Sink Storage Large Storage Unit Processor Advanced Targeting Computer Hackware Improved Hacking Suite Protection Improved Light Armor Plating Weapon Autogun Energy Gun Beam Rifle Ballistic Gun Autogun Ballistic Cannon Advanced Assault Cannon Launcher Rocket Launcher Special Weapon Mining Laser Slashing Weapon Great Axe Special Melee Weapon Improved Datajack Build | -11 -10 -10 -10 -9 -8 -8 -8 -7 -7 -7 -6 -6 -6 ------- Run | Yrd Mat Min Exi Min Mat Gar Mat Fac Gar Fac Fac Low Low Slots Evolved 8 | . . . . . 4 . . 2 . . 2 . . Power . | . . . . . . . . . . . . . . Propulsion 2 | . . . . . 1 . . . . . 1 . . Utility 5 | . . . . . 2 . . 2 . . 1 . . Weapon 1 | . . . . . 1 . . . . . . . . Parts Attached 175 | 9 11 1 . 2 12 16 8 25 32 12 30 13 4 Power 23 | 2 1 . . . 1 5 1 1 6 1 3 1 1 Engine 10 | 2 1 . . . 1 1 . . 1 1 2 1 . Core 13 | . . . . . . 4 1 1 5 . 1 . 1 Reactor . | . . . . . . . . . . . . . . Propulsion 42 | 2 3 . . 1 3 7 2 7 6 1 6 2 2 Treads 7 | . . . . . 1 1 . 3 1 . . 1 . Leg 14 | . . . . . . 6 2 2 1 . 1 . 2 Wheel 20 | 2 3 . . 1 2 . . 2 3 1 5 1 . Hover . | . . . . . . . . . . . . . . Flight 1 | . . . . . . . . . 1 . . . . Utility 64 | 3 3 . . . 4 3 2 13 7 8 13 8 . Device 28 | 1 . . . . 1 . 2 3 3 6 6 6 . Storage 4 | 2 1 . . . . . . . 1 . . . . Processor 14 | . 2 . . . 1 . . 6 . . 3 2 . Hackware 1 | . . . . . . . . . . . 1 . . Protection 17 | . . . . . 2 3 . 4 3 2 3 . . Artifact . | . . . . . . . . . . . . . . Weapon 46 | 2 4 1 . 1 4 1 3 4 13 2 8 2 1 Energy Gun 1 | . 1 . . . . . . . . . . . . Energy Cannon . | . . . . . . . . . . . . . . Ballistic Gun 37 | 2 2 1 . 1 3 1 2 4 12 1 7 . 1 Ballistic Cannon 3 | . . . . . 1 . 1 . . . . 1 . Launcher 1 | . . . . . . . . . . 1 . . . Special Weapon 1 | . 1 . . . . . . . . . . . . Impact Weapon . | . . . . . . . . . . . . . . Slashing Weapon 2 | . . . . . . . . . 1 . 1 . . Piercing Weapon . | . . . . . . . . . . . . . . Special Melee Weapon 1 | . . . . . . . . . . . . 1 . Unidentified Prototypes 4 | . . . . . 1 . . 1 . . 2 . . Parts Lost 72 | . . 1 . 1 2 2 7 3 18 2 6 13 17 Power 7 | . . . . . 1 . . . 3 . . 1 2 Propulsion 16 | . . . . . 1 . 1 . 4 . 3 2 5 Utility 24 | . . . . . . 2 3 2 4 2 1 5 5 Weapon 25 | . . 1 . 1 . . 3 1 7 . 2 5 5 Highest Loss Streak 12 | . . 1 . 1 1 1 6 3 6 1 2 5 12 To Critical Strikes . | . . . . . . . . . . . . . . Average Backups 14 | 5 13 14 14 12 13 14 14 14 13 14 14 12 10 Power 2 | . 1 1 1 1 1 1 1 2 3 3 3 3 4 Propulsion 1 | 2 4 5 4 1 1 1 1 3 . . . 1 . Utility 4 | . 2 2 3 4 4 5 4 4 4 4 5 3 3 Weapon 5 | . 5 6 6 5 5 7 7 4 4 7 6 3 . Tool/Special . | . . . . . . . . . . . . . . Unused Backups 39 | 1 8 . . 2 5 5 . 8 1 1 2 . 6 Power 7 | 1 . . . . . 1 . . . 1 1 . 3 Propulsion 11 | . . . . 2 1 2 . 6 . . . . . Utility 8 | . 1 . . . 2 1 . 1 . . 1 . 2 Weapon 12 | . 7 . . . 2 1 . 1 1 . . . . Tool/Special 1 | . . . . . . . . . . . . . 1 Average Slot Usage (%) 94 | . 99 100 100 100 96 99 97 98 91 90 90 90 58 Engine 3 | . 13 14 14 14 8 . . . 2 3 3 6 1 Core 4 | . . . . . . 8 9 6 4 3 2 . 2 Treads 2 | . . . . . 5 . . 11 . . . 2 1 Leg 6 | . . . . . . 24 27 9 2 5 . . 3 Wheel 11 | . 28 28 28 28 19 1 . 1 9 8 18 16 2 Device 8 | . 2 . . . 7 8 7 12 7 11 7 18 9 Storage 8 | . 14 14 14 14 9 9 9 7 10 7 6 6 6 Processor 14 | . 11 14 14 14 5 9 7 12 23 15 17 9 11 Protection 7 | . . . . . 13 9 10 11 3 8 11 3 . Ballistic Gun 19 | . 24 28 28 28 25 18 17 17 21 22 19 13 1 Ballistic Cannon 2 | . . . . . 1 9 9 4 . . . 2 1 Peak Build Rating 60 | 7 10 10 11 11 27 31 36 52 53 53 56 60 55 Average Rating 40 | 6 9 9 10 10 20 28 31 49 47 50 53 54 34 On Entrance 28 | . 7 9 10 11 11 27 31 33 51 50 50 53 55 Naked Turns . | . . . . . . . . . . . . . . Heaviest Build 61 | 14 30 29 29 29 55 52 52 56 61 53 54 53 45 Greatest Support 79 | 32 32 20 20 10 36 35 40 79 40 40 56 44 44 Greatest Overweight (x) 11 | . 1 1 2 2 4 4 2 4 2 1 4 4 11 Average Overweight (x) . | . . 1 1 2 1 1 1 . 1 1 . 1 1 Largest Inventory Capacity 15 | 8 15 15 15 15 15 15 15 15 15 15 15 15 15 Average Capacity 14 | 7 14 15 15 15 15 15 15 15 15 15 15 15 15 Most Carried 15 | 8 15 15 15 15 15 15 15 15 15 15 15 15 13 Average Carried 14 | 5 13 14 14 14 14 14 14 14 14 14 14 12 10 Final Capacity 15 | 8 15 15 15 15 15 15 15 15 15 15 15 15 15 Final Carried 15 | 8 15 14 15 15 15 15 15 15 15 15 15 13 9 Class Distribution -------------------- 28% | Scavenger-Tank 21% | Scavenger-Gunner 12% | Mutant 11% | Skirmisher 8% | Tank 7% | Scavenger-Mutant 5% | Scavenger-Skirmisher 4% | Gunner Dominant Class ---------------- Mutant | -10/Materials Mutant | -10/Mines Mutant | -10/Exiles Mutant | -9/Mines Scavenger-Tank | -8/Materials Scavenger-Tank | -8/Garrison Scavenger-Tank | -8/Materials Skirmisher | -7/Factory Scavenger-Gunner | -7/Garrison Skirmisher | -7/Factory Gunner | -6/Factory Scavenger-Gunner | -6/Lower Caves Mutant | -6/Lower Caves Resources | -11 -10 -10 -10 -9 -8 -8 -8 -7 -7 -7 -6 -6 -6 ----------- Run | Yrd Mat Min Exi Min Mat Gar Mat Fac Gar Fac Fac Low Low Matter Collected 9760 | 406 342 38 10 43 747 1347 521 1031 2372 538 1485 787 93 Remotely 332 | 248 26 . . . 58 . . . . . . . . Salvage Created 8915 | 190 459 84 . 35 861 1145 690 1645 1628 483 1180 442 73 Parts 506 | 24 36 1 . 8 51 68 32 91 78 24 70 18 5 Haulers Intercepted 10 | . 1 . . . 4 . 4 . . 1 . . . Recyclers Shooed 5 | . 1 . . . . . . 1 . 1 2 . . Parts Field Recycled . | . . . . . . . . . . . . . . Retrieved Matter . | . . . . . . . . . . . . . . Parts Self-Destructed 18 | . . . . . . . . . . . . 14 4 Prevented . | . . . . . . . . . . . . . . Kills | -11 -10 -10 -10 -9 -8 -8 -8 -7 -7 -7 -6 -6 -6 ------- Run | Yrd Mat Min Exi Min Mat Gar Mat Fac Gar Fac Fac Low Low Combat Hostiles Destroyed 166 | . 12 2 . 3 14 27 8 23 38 6 17 13 3 Melee 2 | . . . . . . . . . . . . . 2 Guns 129 | . 12 2 . 3 14 13 3 16 38 3 17 8 . Cannons 31 | . . . . . . 14 5 7 . . . 5 . AOE 4 | . . . . . . . . . . 3 . . 1 Classes Destroyed 15 | 3 6 . . . 3 . . 2 1 . . . . Worker 15 | 2 . . . . 5 . 1 2 . . 5 . . Builder 4 | . 1 . . . . . 1 2 . . . . . Tunneler 6 | 5 . . . . . . . 1 . . . . . Hauler 10 | . 1 . . . 4 . 4 . . 1 . . . Recycler 11 | 1 1 . . . . . . 4 . 3 2 . . Mechanic 4 | . . . . . 1 . . 1 1 . 1 . . Operator 1 | . 1 . . . . . . . . . . . . Watcher 10 | . 2 . . . 2 . 1 3 . . 2 . . Swarmer 39 | . 8 . . 3 8 3 . . 9 . 3 4 1 Grunt 70 | . 4 2 . . 1 15 7 10 18 4 4 5 . Brawler 1 | . . . . . . . . 1 . . . . . Duelist 1 | . . . . . . . . . 1 . . . . Sentry 27 | . . . . . 4 8 1 4 7 1 . 2 . Hunter 8 | . . . . . 1 1 . 2 . . 2 . 2 Programmer 20 | . . . . . . . . 6 3 1 8 2 . Thug 1 | . . . . . . . 1 . . . . . . Best Kill Streak 7 | 3 4 2 . 3 7 5 5 5 5 5 5 4 2 Combat Bots Only 5 | . 3 2 . 3 4 5 4 4 5 3 3 4 2 Max Kills in Single Turn 2 | 1 1 1 . 2 2 1 2 2 2 1 1 2 1 Gunslinging 1 | . . . . 1 . . . . 1 . . 1 . Exploded 1 | . . . . . . . . . . 1 . . 1 Melee 1 | . . . . . . . . . . . . . 1 Uniques/NPCs Destroyed . | . . . . . . . . . . . . . . Combat | -11 -10 -10 -10 -9 -8 -8 -8 -7 -7 -7 -6 -6 -6 -------- Run | Yrd Mat Min Exi Min Mat Gar Mat Fac Gar Fac Fac Low Low Hostile Shots Fired 1406 | . 55 12 . 13 62 96 66 191 438 47 187 113 126 Missed 412 | . 13 2 . 3 15 24 12 73 145 11 52 34 28 Hits 994 | . 42 10 . 10 47 72 54 118 293 36 135 79 98 Melee 3 | . . . . . . . . 3 . . . . . Projectile 991 | . 42 10 . 10 47 72 54 115 293 36 135 79 98 AOE 4 | . . . . . . . . 2 . 2 . . . Critical Strikes 19 | . . . . . . 4 3 2 6 . 2 1 1 Damage Taken 13018 | . 378 134 . 77 440 779 839 1527 2969 527 2293 1400 1655 Core 1718 | . 87 48 . 25 37 67 47 155 337 64 184 96 571 Absorbed by Shields 421 | . . . . . 96 273 52 . . . . . . Redirected to Shielding 87 | . . . . . . . . . . . 87 . . Ignored by Resistances 113 | . . . . . 86 15 . 12 . . . . . Core Remaining (%) 57 | 100 . . . 36 . . 72 . . 20 . . . Volleys Fired 638 | 29 47 6 . 3 50 98 32 80 124 26 99 36 8 Largest 3 | 2 2 2 . 2 3 3 3 3 3 3 3 3 2 Hottest 100 | 40 100 46 . 46 86 86 93 96 86 83 84 91 65 Shots Fired 1692 | 58 93 11 . 6 149 272 95 243 313 67 286 90 9 Gun 1483 | 58 92 11 . 6 148 176 63 195 313 64 286 67 4 Cannon 201 | . . . . . 1 96 32 48 . . . 23 1 Launcher 7 | . . . . . . . . . . 3 . . 4 Special 1 | . 1 . . . . . . . . . . . . Kinetic 1662 | 58 70 11 . 6 149 272 95 243 313 64 286 90 5 Thermal 23 | . 23 . . . . . . . . . . . . Explosive 7 | . . . . . . . . . . 3 . . 4 Electromagnetic . | . . . . . . . . . . . . . . Robot Hit Streak 30 | 3 13 15 . 5 16 14 11 9 27 14 30 11 2 Robot Miss Streak 12 | 3 4 2 . 1 7 4 6 5 12 6 7 10 2 Penetration Max 1 | . . . . . . . . 1 1 1 1 . . Secondary Targets 17 | . . . . 2 1 . . 1 10 . 2 1 . Max Gunslinging Chain 1 | . . . . 1 1 . . 1 1 . 1 1 . Shots Hit Robots 965 | 31 55 8 . 5 82 110 55 135 195 37 177 66 9 Core Hits 551 | 14 25 4 . 3 42 57 26 70 147 23 84 49 7 Critical Kills 6 | . . . . . 1 . . 1 2 1 1 . . Critical Parts Destroyed 6 | . . . . . . . . 1 3 1 . 1 . Critical Strikes 19 | . 2 . . . 1 . 1 4 5 2 1 3 . Burn 2 | . 2 . . . . . . . . . . . . Destroy 12 | . . . . . 1 . . 2 5 2 1 1 . Blast 5 | . . . . . . . 1 2 . . . 2 . Melee Attacks 54 | . . . . . . . . . 22 . 11 . 21 Impact . | . . . . . . . . . . . . . . Slashing 54 | . . . . . . . . . 22 . 11 . 21 Piercing . | . . . . . . . . . . . . . . Sneak Attacks 1 | . . . . . . . . . . . 1 . . Combat Hostiles . | . . . . . . . . . . . . . . Follow-up Attacks . | . . . . . . . . . . . . . . Damage Inflicted 18039 | 336 733 117 . 75 1173 1988 1071 3191 3555 1000 3083 1241 476 Guns 15002 | 336 733 117 . 75 1173 1248 592 2583 3555 726 3014 831 19 Cannons 2258 | . . . . . . 740 479 608 . . . 410 21 Explosions 498 | . . . . . . . . . . 271 . . 227 Melee 278 | . . . . . . . . . . . 69 . 209 Ramming 3 | . . . . . . . . . . 3 . . . Kinetic 17059 | 336 532 117 . 75 1173 1988 1071 3191 3555 726 3014 1241 40 Thermal 201 | . 201 . . . . . . . . . . . . Explosive 498 | . . . . . . . . . . 271 . . 227 Electromagnetic . | . . . . . . . . . . . . . . Impact . | . . . . . . . . . . . . . . Slashing 278 | . . . . . . . . . . . 69 . 209 Piercing . | . . . . . . . . . . . . . . Highest Corruption 10 | . . . . . 2 2 2 6 10 10 5 9 9 Average Corruption 4 | . . . . . 2 2 2 3 6 6 3 7 9 Corruption Purged 5 | . . . . . . . . . . 5 . . . Corruption Blocked . | . . . . . . . . . . . . . . Effects 391 | . . . . . 11 49 6 34 134 38 62 47 10 Message Errors 83 | . . . . . 2 13 1 7 28 6 16 7 3 Matter Fused 99 | . . . . . 4 13 1 8 42 7 13 7 4 Heat Flow Errors 37 | . . . . . 2 2 . 2 10 9 6 4 2 Energy Discharges 54 | . . . . . 2 7 4 4 10 6 9 11 1 Parts Rejected 1 | . . . . . 1 . . . . . . . . Parts Fused 4 | . . . . . . 1 . . 3 . . . . Data Loss (minor) 49 | . . . . . . 8 . 7 16 6 5 7 . Data Loss (major) 24 | . . . . . . 2 . 2 11 1 6 2 . Misfires 21 | . . . . . . 1 . 3 6 1 4 6 . Alerts 14 | . . . . . . 1 . 1 5 2 2 3 . Weapon Failures 5 | . . . . . . 1 . . 3 . 1 . . Overload Shots . | . . . . . . . . . . . . . . Overflow Damage 58 | . . . . . . 7 . . . . . 1 50 Projectiles 8 | . . . . . . 7 . . . . . 1 . Explosions 42 | . . . . . . . . . . . . . 42 Melee 8 | . . . . . . . . . . . . . 8 Knockbacks 13 | . . . . . . 4 4 3 . . . 2 . Impact . | . . . . . . . . . . . . . . Kinetic 11 | . . . . . . 3 3 3 . . . 2 . Secondary 2 | . . . . . . 1 1 . . . . . . Self-Inflicted Damage 139 | . . . . . . . . . . 44 . . 95 Shots 3 | . . . . . . . . . . 1 . . 2 Rammed 1 | . . . . . . . . . . 1 . . . Targets Rammed 1 | . . . . . . . . . . 1 . . . Kicked . | . . . . . . . . . . . . . . Crushed . | . . . . . . . . . . . . . . Highest Temperature 503 | . 75 10 . . 230 247 503 185 226 340 320 196 226 Average Temperature 72 | . 23 6 . . 31 47 168 24 81 157 67 71 116 Received Heat Transfer 3186 | . 48 78 . . 93 381 492 432 999 96 258 309 . Effects 13 | . . . . . . . 7 . . 4 2 . . Shutdowns 2 | . . . . . . . 2 . . . . . . Energy Bleed 4 | . . . . . . . 1 . . 3 . . . Interference 2 | . . . . . . . . . . . 2 . . Matter Decay 3 | . . . . . . . 3 . . . . . . Short Circuit 1 | . . . . . . . 1 . . . . . . Damage (minor) 1 | . . . . . . . . . . 1 . . . Siege Activations . | . . . . . . . . . . . . . . Martial Activations . | . . . . . . . . . . . . . . Shielding Activations . | . . . . . . . . . . . . . . Robots Disrupted . | . . . . . . . . . . . . . . Combat Hostiles . | . . . . . . . . . . . . . . Robots Corrupted . | . . . . . . . . . . . . . . Combat Hostiles . | . . . . . . . . . . . . . . Parts Fried . | . . . . . . . . . . . . . . Impact Corruptions . | . . . . . . . . . . . . . . Robots Melted . | . . . . . . . . . . . . . . Combat Hostiles . | . . . . . . . . . . . . . . Parts Melted 2 | . . . . . . . 1 . 1 . . . . Heat Transferred 666 | . 666 . . . . . . . . . . . . Parts Sabotaged . | . . . . . . . . . . . . . . Parts Stolen . | . . . . . . . . . . . . . . Parts Stripped . | . . . . . . . . . . . . . . Power Chain Reactions . | . . . . . . . . . . . . . . Alert | -11 -10 -10 -10 -9 -8 -8 -8 -7 -7 -7 -6 -6 -6 ------- Run | Yrd Mat Min Exi Min Mat Gar Mat Fac Gar Fac Fac Low Low Maximum Alert Level 5 | . . . . . . 5 3 2 5 4 2 . . Low Security (%) 24 | 100 100 100 . 100 100 5 . 34 . . . . . Level 1 34 | . . . . . . 11 . 61 23 . 85 . . Level 2 10 | . . . . . . 20 . 4 17 . 13 . . Level 3 9 | . . . . . . 18 100 . 17 . . . . Level 4 12 | . . . . . . 23 . . 12 100 . . . Level 5 9 | . . . . . . 21 . . 30 . . . . High Security . | . . . . . . . . . . . . . . Max Security . | . . . . . . . . . . . . . . Peak Influence 2444 | 10 101 56 . 60 167 2020 1086 477 2444 1290 618 . . Initial 1283 | . . 16 . . . 50 984 477 242 1283 618 . . Average 604 | 1 55 21 . 10 61 989 1014 255 1118 1212 312 . . Influence Increases 8176 | 40 445 50 . 70 476 1990 418 631 2442 609 580 355 70 Destroy 0b10 Robot/C 3372 | . 240 40 . 60 280 600 260 368 688 224 292 260 60 Destroy 0b10 Robot/NC 297 | 40 30 . . . 60 . 35 52 8 28 44 . . Destroy Leader 588 | . 56 10 . 10 92 20 70 118 24 62 96 20 10 Allied During Kill 135 | . . . . . . 15 24 . 15 81 . . . Trap Triggered on 0b10 10 | . . . . . 10 . . . . . . . . Successful Hack 145 | . 26 . . . 17 30 2 10 6 22 32 . . Disable Machine 225 | . 15 . . . . 30 . 36 24 72 48 . . Anti-Garrison Action 2720 | . . . . . . 1200 . . 1520 . . . . Destroy Structure 237 | . 3 . . . 2 80 12 11 85 36 8 . . Partial Spotted 27 | . 15 . . . . . . . 12 . . . . Lose Combat Pursuer 420 | . 60 . . . 15 15 15 36 60 84 60 75 . Influence Decreases 8166 | 40 401 94 . 70 399 47 1388 1334 345 1791 1475 702 80 Entered New Map 3715 | . . 28 . . . 27 1036 573 105 1161 644 137 4 Time Decay 3683 | 40 401 56 . 60 379 . 262 731 . 490 751 463 50 Lost Part 548 | . . 10 . 10 20 20 70 30 180 20 60 102 26 Lost Ally 220 | . . . . . . . 20 . 60 120 20 . . Squads Dispatched 47 | . 3 . . . 5 . 3 10 . 9 17 . . Investigation 11 | . 1 . . . . . 1 3 . 2 4 . . Extermination 17 | . . . . . . . . 7 . 2 8 . . Reinforcement 7 | . 2 . . . 2 . . . . 1 2 . . Assault 6 | . . . . . . . 2 . . 4 . . . Garrison 6 | . . . . . 3 . . . . . 3 . . Intercept . | . . . . . . . . . . . . . . Searches Triggered . | . . . . . . . . . . . . . . Construction Impeded . | . . . . . . . . . . . . . . Haulers Reinforced 1 | . . . . . . . . . . 1 . . . Active Scanning Responses . | . . . . . . . . . . . . . . Cargo Convoy Interrupts . | . . . . . . . . . . . . . . Stealth | -11 -10 -10 -10 -9 -8 -8 -8 -7 -7 -7 -6 -6 -6 --------- Run | Yrd Mat Min Exi Min Mat Gar Mat Fac Gar Fac Fac Low Low Distress Signals 7 | . 2 . . . . . . 2 . 1 2 . . Communications Jammed . | . . . . . . . . . . . . . . Distress Signals . | . . . . . . . . . . . . . . Times Spotted 280 | . 28 2 . 5 18 28 20 33 50 36 38 17 5 Peak Tracking Total 13 | . 4 2 . 3 6 5 4 4 5 13 5 5 3 Tactical Retreats 22 | . 4 . . . 1 1 1 3 3 3 2 4 . Traps | -11 -10 -10 -10 -9 -8 -8 -8 -7 -7 -7 -6 -6 -6 ------- Run | Yrd Mat Min Exi Min Mat Gar Mat Fac Gar Fac Fac Low Low Traps Triggered 37 | . 2 . . . 3 9 . 2 16 3 2 . . Indirectly . | . . . . . . . . . . . . . . Trap Hack Attempts . | . . . . . . . . . . . . . . Triggered . | . . . . . . . . . . . . . . Disarmed 4 | . . . . . . . . . . . 4 . . Reprogrammed . | . . . . . . . . . . . . . . Reused 1 | . . . . . 1 . . . . . . . . Traps Extracted . | . . . . . . . . . . . . . . Installed 4 | . . . . 2 2 . . . . . . . . Triggered 1 | . . . . . 1 . . . . . . . . Most Traps Carried 3 | . . . . 3 3 . . . . . . . . Machines | -11 -10 -10 -10 -9 -8 -8 -8 -7 -7 -7 -6 -6 -6 ---------- Run | Yrd Mat Min Exi Min Mat Gar Mat Fac Gar Fac Fac Low Low Machines Disabled 34 | . 1 . . . . 7 . 3 12 6 4 1 . Max in Single Turn 2 | . 1 . . . . 1 . 1 2 2 1 1 . Garrison Relay 9 | . . . . . . 4 . . 5 . . . . Phase Generator 1 | . . . . . . . . . 1 . . . . Machines Repaired . | . . . . . . . . . . . . . . Machines Dismantled . | . . . . . . . . . . . . . . Machines Sabotaged . | . . . . . . . . . . . . . . Overloaded Fab Kills . | . . . . . . . . . . . . . . Hacking | -11 -10 -10 -10 -9 -8 -8 -8 -7 -7 -7 -6 -6 -6 --------- Run | Yrd Mat Min Exi Min Mat Gar Mat Fac Gar Fac Fac Low Low Machines Accessed 52 | . 6 . 1 . 5 4 2 7 3 7 13 4 . Terminals 28 | . 3 . . . 4 4 . 3 3 2 9 . . Fabricators 5 | . . . . . . . . . . 4 1 . . Repair Stations 1 | . 1 . . . . . . . . . . . . Recycling Units 8 | . 2 . . . . . 1 2 . 1 2 . . Scanalyzers 2 | . . . . . . . 1 1 . . . . . Garrison Access 3 | . . . . . 1 . . 1 . . 1 . . Total Hacks 124 | . 19 . 1 . 11 10 8 21 5 13 31 5 . Successful 52 | . 9 . 1 . 4 3 6 10 1 6 7 5 . Failed 72 | . 10 . . . 7 7 2 11 4 7 24 . . Catastrophic 20 | . 1 . . . 2 4 . 3 1 2 7 . . Database Lockouts . | . . . . . . . . . . . . . . Manual 69 | . 13 . 1 . 10 . 2 8 . 10 25 . . Terminals 67 | . 12 . . . 10 10 . 4 5 3 23 . . Fabricators 10 | . . . . . . . . . . 8 2 . . Repair Stations 3 | . 3 . . . . . . . . . . . . Recycling Units 16 | . 4 . . . . . 2 4 . 2 4 . . Scanalyzers 18 | . . . . . . . 6 12 . . . . . Garrison Access 4 | . . . . . 1 . . 1 . . 2 . . Terminal Hacks 17 | . 3 . 1 . 1 3 . . 1 . 3 5 . Record 4 | . . . . . . . . . . . 1 3 . Robot Analysis 2 | . 2 . . . . . . . . . . . . Open Door 4 | . . . . . . 1 . . 1 . . 2 . Branch Access Points 1 | . . . . . . . . . . . 1 . . Terminal Index 1 | . . . . . 1 . . . . . . . . Locate Traps 1 | . 1 . . . . . . . . . . . . Disarm Traps 1 | . . . . . . . . . . . 1 . . Garrison Registry 1 | . . . . . . 1 . . . . . . . Security Stations 1 | . . . . . . 1 . . . . . . . Proto ID Catalog 1 | . . . 1 . . . . . . . . . . Fabricator Hacks 2 | . . . . . . . . . . 2 . . . Network Status 2 | . . . . . . . . . . 2 . . . Repair Station Hacks 1 | . 1 . . . . . . . . . . . . Scan Component 1 | . 1 . . . . . . . . . . . . Recycling Unit Hacks 2 | . 2 . . . . . . . . . . . . Report Inventory 2 | . 2 . . . . . . . . . . . . Scanalyzer 13 | . . . . . . . 5 8 . . . . . Insert Component 7 | . . . . . . . 3 4 . . . . . Analyze 6 | . . . . . . . 2 4 . . . . . Garrison Access Hacks 3 | . . . . . 1 . . 1 . . 1 . . Unlock Access 3 | . . . . . 1 . . 1 . . 1 . . Unauthorized Hacks 14 | . 3 . . . 2 . 1 1 . 4 3 . . Terminals 4 | . 1 . . . 2 . . . . . 1 . . Assimilate 1 | . . . . . . . . . . . 1 . . Botnet 2 | . 1 . . . 1 . . . . . . . . Operators 1 | . . . . . 1 . . . . . . . . Fabricators 4 | . . . . . . . . . . 3 1 . . Liberate 4 | . . . . . . . . . . 3 1 . . Repair Stations . | . . . . . . . . . . . . . . Recycling Units 6 | . 2 . . . . . 1 1 . 1 1 . . Reject 6 | . 2 . . . . . 1 1 . 1 1 . . Scanalyzers . | . . . . . . . . . . . . . . Garrison Access . | . . . . . . . . . . . . . . Data Cores Recovered 1 | . . . . . . . . . . 1 . . . Used . | . . . . . . . . . . . . . . Hacking Detections 41 | . 6 . . . 4 4 2 5 2 4 14 . . Full Trace Events 9 | . 2 . . . . . 1 1 . 2 3 . . Feedback Events 1 | . . . . . . . . . . 1 . . . Corruption 1 | . . . . . . . . . . 1 . . . Feedback Blocked . | . . . . . . . . . . . . . . Robot Schematics Acquired . | . . . . . . . . . . . . . . Robots Built . | . . . . . . . . . . . . . . Authchips . | . . . . . . . . . . . . . . Time . | . . . . . . . . . . . . . . Total Robot Build Rating . | . . . . . . . . . . . . . . Part Schematics Acquired 5 | . . . . . . . 2 3 . . . . . Parts Built . | . . . . . . . . . . . . . . Authchips . | . . . . . . . . . . . . . . Time . | . . . . . . . . . . . . . . Total Part Build Rating . | . . . . . . . . . . . . . . Parts Repaired . | . . . . . . . . . . . . . . Time . | . . . . . . . . . . . . . . Parts Recycled . | . . . . . . . . . . . . . . Recycled Matter . | . . . . . . . . . . . . . . Retrieved Matter . | . . . . . . . . . . . . . . Retrieved Components . | . . . . . . . . . . . . . . Parts Scanalyzed 5 | . . . . . . . 3 2 . . . . . Part Schematics Acquired 5 | . . . . . . . 2 3 . . . . . Parts Damaged 1 | . . . . . . . . 1 . . . . . Bothacking | -11 -10 -10 -10 -9 -8 -8 -8 -7 -7 -7 -6 -6 -6 ------------ Run | Yrd Mat Min Exi Min Mat Gar Mat Fac Gar Fac Fac Low Low Used RIF Installer . | . . . . . . . . . . . . . . Robots Hacked . | . . . . . . . . . . . . . . Non-combat . | . . . . . . . . . . . . . . Combat . | . . . . . . . . . . . . . . Robot Hacks Applied . | . . . . . . . . . . . . . . Relay Couplers Released 37 | . . . . . . 17 . . 20 . . . . Machine Destruction 37 | . . . . . . 17 . . 20 . . . . Fabnet Peak Effective % . | . . . . . . . . . . . . . . Robots Rewired 4 | . . . . . . . . . 4 . . . . Allies Hacked . | . . . . . . . . . . . . . . Hacks Repelled . | . . . . . . . . . . . . . . Allies | -11 -10 -10 -10 -9 -8 -8 -8 -7 -7 -7 -6 -6 -6 -------- Run | Yrd Mat Min Exi Min Mat Gar Mat Fac Gar Fac Fac Low Low Total Allies 15 | . . 2 . . . 2 . . 8 3 . . . Largest Group 7 | . . 2 1 . . 2 2 . 5 7 . . . Highest-Rated Group 265 | . . 41 31 . . 62 62 . 247 265 . . . Highest-Rated Ally 95 | . . 31 31 . . 31 31 . 95 95 . . . Initial Warlord ECA Mod 87 | . . . . . . . 8 7 7 17 16 16 16 Total Orders 3 | . . . . . . . . . . . 3 . . EXPLORE 3 | . . . . . . . . . . . 3 . . Ally Attacks 145 | . . . . . . 15 32 . 37 61 . . . Total Damage 3093 | . . . . . . 294 612 . 600 1587 . . . Kills 27 | . . . . . . 3 5 . 6 13 . . . Allies Corrupted . | . . . . . . . . . . . . . . Allies Melted . | . . . . . . . . . . . . . . Intel | -11 -10 -10 -10 -9 -8 -8 -8 -7 -7 -7 -6 -6 -6 ------- Run | Yrd Mat Min Exi Min Mat Gar Mat Fac Gar Fac Fac Low Low Active Infowar (turns) 526 | . 526 . . . . . . . . . . . . Optics 526 | . 526 . . . . . . . . . . . . Robot Analysis Total 2 | . 2 . . . . . . . . . . . . Derelict Logs Recovered 3 | . . . . 1 . . . . . . . 2 . Drone Launches 4 | . . . . . . . . . . . 4 . . Drone Recoveries 2 | . . . . . . . . . . . 2 . . Exploration | -11 -10 -10 -10 -9 -8 -8 -8 -7 -7 -7 -6 -6 -6 ------------- Run | Yrd Mat Min Exi Min Mat Gar Mat Fac Gar Fac Fac Low Low Turns Passed 22632 | 243 1198 142 504 294 1582 3248 563 3611 4083 1285 4013 1580 286 Spaces Moved 13872 | 143 949 130 470 229 779 1531 216 1761 2682 945 2637 1281 119 Core 10 | 7 . . . . . . . . . . . . 3 Treads 776 | . . . . . . . . 775 . . . . 1 Legs 2423 | . . . . . . 1367 216 773 . . . . 67 Wheels 10663 | 136 949 130 470 229 779 164 . 213 2682 945 2637 1281 48 Hover . | . . . . . . . . . . . . . . Flight . | . . . . . . . . . . . . . . Fastest Speed 50 | 50 95 95 95 110 101 105 190 110 95 110 96 100 100 Average Speed 125 | 97 97 95 106 110 113 181 195 167 113 113 105 108 170 Slowest Speed 600 | 100 105 95 110 110 140 400 260 190 130 115 150 140 600 Overloaded Moves . | . . . . . . . . . . . . . . Propulsion Burnouts . | . . . . . . . . . . . . . . Robots Hopped . | . . . . . . . . . . . . . . Potential Cave-ins . | . . . . . . . . . . . . . . Cave-ins Triggered . | . . . . . . . . . . . . . . Exploration Rate (%) 52 | 9 95 32 78 47 50 82 19 27 99 27 44 96 23 Regions Visited 13 Branch Regions 5 Pre-discovered Areas 2 | . . . . 1 . . . . . . . 1 . Known Exits Taken 3 | . . . . . 1 . . 1 . . 1 . . Unknown Exits Taken 8 | 1 1 1 1 1 . . 1 . . 1 . 1 . Scrap Searched 3 | . . . . . . . . . . . . 3 . Spaces Dug 23 | . 1 . . . . . . 1 14 . 7 . . Terrain Destroyed 216 | . 1 . . . 1 . 11 10 86 53 10 8 36 Melee 21 | . . . . . . . . . 14 . 7 . . Projectile 39 | . 1 . . . 1 . 11 9 6 . 3 8 . AOE 155 | . . . . . . . . . 66 53 . . 36 Terrain Rammed . | . . . . . . . . . . . . . . Walls Destroyed . | . . . . . . . . . . . . . . Machines Disabled . | . . . . . . . . . . . . . . Actions | -11 -10 -10 -10 -9 -8 -8 -8 -7 -7 -7 -6 -6 -6 --------- Run | Yrd Mat Min Exi Min Mat Gar Mat Fac Gar Fac Fac Low Low Total 17719 | 190 1133 137 474 266 1380 1804 287 2265 3438 1107 3673 1404 161 Wait 2452 | . 85 1 . 24 499 91 21 347 399 87 843 48 7 Move 13855 | 142 948 129 469 228 778 1530 215 1760 2677 944 2636 1280 119 Hop . | . . . . . . . . . . . . . . Pick Up 120 | 8 18 . 2 4 14 9 6 17 19 4 9 10 . Fast Attach 100 | 7 6 . . . 10 5 2 14 15 9 22 8 2 Attach 62 | . 2 1 1 2 4 4 5 7 14 1 6 11 4 Detach 25 | . 4 . 1 . 3 . 1 2 5 1 7 1 . Swap 62 | 2 6 . . . 3 9 2 7 12 6 15 . . Drop 157 | 2 17 . 1 3 17 21 3 31 20 12 24 6 . Fire 638 | 29 47 6 . 3 50 98 32 80 124 26 99 36 8 Melee 54 | . . . . . . . . . 22 . 11 . 21 Ram 1 | . . . . . . . . . . 1 . . . Kick . | . . . . . . . . . . . . . . Crush . | . . . . . . . . . . . . . . Escape Stasis 155 | . . . . . . 35 . . 104 16 . . . Rewire 34 | . . . . . . 2 . . 27 . 1 4 . Trap 4 | . . . . 2 2 . . . . . . . . Miscellaneous . | . . . . . . . . . . . . . . Route ------- -11/Scrapyard -10/Materials (discovered 6 exits: [*Mat x3] / [*Min x2] / [*Sub]) -10/Mines -10/Exiles -9/Mines (discovered 2 exits: *Mat x2) -8/Materials -8/Garrison (discovered 3 exits: *Mat x3) -8/Materials -7/Factory (discovered 2 exits: [*Low] / Gar) -7/Garrison (discovered 3 exits: *Fac x3) -7/Factory -6/Factory (discovered 3 exits: *Low x2 / Gar) -6/Lower Caves -6/Lower Caves History --------- Turn | Location | Event 9 | -11/Scrapyard | Discovered new exit (range 15) 244 | -11/Scrapyard | Entered Materials 312 | -10/Materials | Build established: Mutant 599 | -10/Materials | Discovered new exit (range 11) 744 | -10/Materials | Derelicts attacked the area 771 | -10/Materials | Discovered new exit (range 4) 1004 | -10/Materials | Discovered new exit (range 5) 1156 | -10/Materials | Discovered new exit (range 8) 1297 | -10/Materials | Discovered new exit (range 8) 1377 | -10/Materials | Discovered new exit (range 4) 1442 | -10/Materials | Entered Mines 1451 | -10/Mines | Core integrity fell below 50% 1579 | -10/Mines | Deemed a non-threat by the Exiles lab entrance 1580 | -10/Mines | Discovered new exit (range 5) 1584 | -10/Mines | Entered Exiles 1584 | -10/Exiles | Accompanied by 1 ally 1608 | -10/Exiles | Met 8R-AWN 1614 | -10/Exiles | Led the pair of lost Derelicts to a safe place 1622 | -10/Exiles | Met EX-HEX 1659 | -10/Exiles | Met EX-DEC 1733 | -10/Exiles | Visited The Gauntlet 1797 | -10/Exiles | Met EX-BIN 1810 | -10/Exiles | Aligned with FarCom system 1812 | -10/Exiles | Given EX-Vault access code 1839 | -10/Exiles | Opened EX-Vault 1889 | -10/Exiles | Found 0b10 Alert Chip 1913 | -10/Exiles | Warned to stay clear of 0b10 Research branches 2075 | -10/Exiles | Discovered new exit (range 14) 2088 | -10/Exiles | Left Exiles lab with 0b10 Alert Chip 2088 | -10/Exiles | Entered Mines 2161 | -9/Mines | Found a hidden stash of uninstalled traps 2278 | -9/Mines | Discovered new exit (range 10) 2349 | -9/Mines | Learned location of Storage (-8) 2361 | -9/Mines | Discovered new exit (range 5) 2382 | -9/Mines | Entered Materials 2382 | -8/Materials | Evolved 4 slots: Propulsion x1, Utility x2, Weapon x1 2871 | -8/Materials | Build established: Tank 2957 | -8/Materials | Garrison activated, responded to threat 3141 | -8/Materials | Identified exit to Garrison 3405 | -8/Materials | Build established: Scavenger-Tank 3964 | -8/Materials | Entered Garrison 4028 | -8/Garrison | Triggered checkpoint 4142 | -8/Garrison | Garrison Relay disabled 4430 | -8/Garrison | Triggered checkpoint 4686 | -8/Garrison | Triggered checkpoint 4836 | -8/Garrison | Triggered checkpoint 4918 | -8/Garrison | Triggered checkpoint 5096 | -8/Garrison | Triggered checkpoint 5170 | -8/Garrison | Garrison Relay disabled 5226 | -8/Garrison | Rescued a captive Derelict 5227 | -8/Garrison | Rescued a captive Derelict 5384 | -8/Garrison | Discovered new exit (range 14) 5492 | -8/Garrison | Triggered checkpoint 5657 | -8/Garrison | Garrison Relay disabled 5697 | -8/Garrison | Discovered new exit (range 14) 5729 | -8/Garrison | Discovered new exit (range 53) 5729 | -8/Garrison | Discovered new exit (range 65) 5729 | -8/Garrison | Discovered new exit (range 7) 6262 | -8/Garrison | Learned Materials security intel 6432 | -8/Garrison | Garrison Relay disabled 7212 | -8/Garrison | Entered Materials 7212 | -8/Materials | Accompanied by 2 allies 7506 | -8/Materials | Discovered new exit (range 7) 7612 | -8/Materials | First assault squad dispatched 7716 | -8/Materials | Lost 6 parts (1n2u3w) 7775 | -8/Materials | Entered Factory 7775 | -7/Factory | Evolved 2 slots: Utility x2 8159 | -7/Factory | Build established: Scavenger-Skirmisher 8865 | -7/Factory | Build established: Skirmisher 10244 | -7/Factory | Lost 3 parts (2u1w) 10286 | -7/Factory | Discovered new exit (range 11) 10514 | -7/Factory | Build established: Scavenger-Tank 11385 | -7/Factory | Identified exit to Garrison 11386 | -7/Factory | Entered Garrison 11499 | -7/Garrison | Build established: Scavenger-Gunner 11533 | -7/Garrison | Triggered checkpoint 11536 | -7/Garrison | Triggered checkpoint 11657 | -7/Garrison | Lost 6 parts (1n2u3w) 12054 | -7/Garrison | Triggered checkpoint 12085 | -7/Garrison | Garrison Relay disabled 12157 | -7/Garrison | Triggered checkpoint 12401 | -7/Garrison | Discovered new exit (range 13) 12547 | -7/Garrison | Triggered checkpoint 12622 | -7/Garrison | Garrison Relay disabled 12698 | -7/Garrison | Core integrity fell below 50% 12906 | -7/Garrison | Discovered new exit (range 13) 12968 | -7/Garrison | Triggered checkpoint 13025 | -7/Garrison | Garrison Relay disabled 13156 | -7/Garrison | Triggered checkpoint 13334 | -7/Garrison | Triggered checkpoint 13456 | -7/Garrison | Garrison Relay disabled 13725 | -7/Garrison | Rescued a captive Derelict 13732 | -7/Garrison | Rescued a captive Derelict 13733 | -7/Garrison | Lost 3 parts (1p1u1w) 13949 | -7/Garrison | Build established: Scavenger-Mutant 14056 | -7/Garrison | Triggered checkpoint 14095 | -7/Garrison | Garrison Relay disabled 14149 | -7/Garrison | Discovered new exit (range 12) 14289 | -7/Garrison | Phase Generator disabled 14512 | -7/Garrison | System corruption reached 10% 14606 | -7/Garrison | Triggered checkpoint 14653 | -7/Garrison | Build established: Scavenger-Gunner 14953 | -7/Garrison | Found embedded Infiltrators 15350 | -7/Garrison | Attempted to access garrison exit controls, blocked by remote lockdown 15469 | -7/Garrison | Entered Factory 15469 | -7/Factory | Accompanied by 5 allies 15815 | -7/Factory | Build established: Scavenger-Skirmisher 15869 | -7/Factory | First assault squad dispatched 16245 | -7/Factory | Lost 7 allies 16266 | -7/Factory | Build established: Skirmisher 16660 | -7/Factory | Discovered new exit (range 16) 16754 | -7/Factory | Entered another Factory area 16754 | -6/Factory | Evolved 2 slots: Propulsion x1, Utility x1 16984 | -6/Factory | Garrison activated, responded to threat 16995 | -6/Factory | Build established: Gunner 18176 | -6/Factory | Identified exit to Garrison 18181 | -6/Factory | Build established: Tank 18857 | -6/Factory | Build established: Skirmisher 19246 | -6/Factory | Build established: Tank 19825 | -6/Factory | Build established: Scavenger-Gunner 19931 | -6/Factory | Identified exit to Lower Caves 20148 | -6/Factory | Build established: Scavenger-Tank 20767 | -6/Factory | Entered Lower Caves 20774 | -6/Lower Caves | Met a Warlord Commander 20775 | -6/Lower Caves | Learned location of Warlord (-5) 20776 | -6/Lower Caves | Warlord Commander delivered Encrypted Comm Array 20781 | -6/Lower Caves | Found Unknown Device 20781 | -6/Lower Caves | Identified Encrypted Comm Array 21040 | -6/Lower Caves | Lost 3 parts (1u2w) 21126 | -6/Lower Caves | Build established: Scavenger-Gunner 21294 | -6/Lower Caves | Encountered a Warlord checkpoint 21511 | -6/Lower Caves | Lost 5 parts (1p3u1w) 21547 | -6/Lower Caves | Attracted the attention of an 0b10 outpost 21825 | -6/Lower Caves | Learned Factory emergency access door positions 21851 | -6/Lower Caves | Found Alien Artifact 21940 | -6/Lower Caves | Attracted the attention of an 0b10 checkpoint 21959 | -6/Lower Caves | Learned Factory emergency access door positions 22076 | -6/Lower Caves | Build established: Scavenger-Mutant 22099 | -6/Lower Caves | Discovered new exit (range 6) 22347 | -6/Lower Caves | Entered another Lower Caves area 22366 | -6/Lower Caves | Encountered a Warlord checkpoint 22430 | -6/Lower Caves | Core integrity fell below 50% 22463 | -6/Lower Caves | Lost 12 parts (1p4n2u5w) 22592 | -6/Lower Caves | Core integrity fell below 20% 22633 | -6/Lower Caves | Destroyed by S-27 Virus with Autogun Last Messages --------------- 22484_ System corrupted: Matter fused (-5). 22490_ Acquired 38 matter. 22491_ The unstable cave ceiling collapses. 22499_ XMM5HIFT=VG0CUVNWWK 0HA0S/F PG1ZG&E4E6R 22529_ System corrupted: Energy discharge (-71). 22548_ Z8MCALWU> 6MBUXBGV||7NIDS2YFLM 22570_ System corrupted: Heat flow error (+225). 22572_ Fission Core destroyed. 22581_ Imp. Hacking Suite destroyed. 22585_ Adv. Targeting Computer destroyed. 22589_ Imp. Heat Sink destroyed. 22603_ System corrupted: Matter fused (-7). 22608_ Flexi-carbon Leg destroyed. 22610_ S-27 Virus destroyed. 22614_ VTOL Module fries itself beyond repair. 22614_ Acquired 2 matter. 22619_ Unknown Power Core fries itself beyond repair. 22620_ XKADAPRWUMDC9VT0G%HOW,|2%AFBOEM 22623_ Destroyed VTOL Module. Map ----- +----------------------------------------------------+ | ?????????????????????????????????????????????????? | | ?????????????????????????????????????????????????? | | ?????????????????????????????????????????????????? | | ?????????????????????????????????????????????????? | | ?????????????????????????????????????????????????? | | ?????????????????????????????????????????????????? | | ?????????????????????????????????????????????????? | | ?????????????????????????????????????????????????? | | ????????????????????????????????????????###??????? | | ???????????????????????????????????????## ####??? | | ??????????????????????????????????????## #??# | | ??????????????????????????????????????# #??# | | ??????????????????????????????? #???????# #### | | ??????????????????????????????? ????????# ## | | ??????????????????????????????? ???####?# | | ??????????????????????????????# # #?## ## | | ??????????????????????????????# # ### | | ??????????????????????????????# # # # | | ??????????????????????????????# # | | ??????????????????????????????# | | ?????????????????????????????## ## ## | | ????????????????????????????? ?# ### ## | | ?????????????????????????????# #??# ### ## | | ?????????????????????????##### #??# | | ????????????????????????##s #### | | ??????????????????????###@ | | ?????????????????????## | | ?????????????????????# s ### #### | | ????????????????????# #?####??# | | ????????????????? ???????# | | ????????????????# ???????# ##### | | ????????????????## ??????# #???# | | ?????????????????##### ??????# #???# | | ?????????????????????# ?????# ## #???# | | ????????????????????? ?????# ### #???? | | ???????????????????? ###????# #?# ???# | | ???????????????????? ###??????# #??# #?## | | ???????????????????# #?????????# #???######## | | ???????????????????# ?????????? ?????????## | | ???????????????????#!! ?????????? # ?????????# | | ???????????????????#!%##????????????#???????# # | | ?????????????????????!??????????????????????# ???? | | ?????????????????????????????????????????????????? | | ?????????????????????????????????????????????????? | | ?????????????????????????????????????????????????? | | ?????????????????????????????????????????????????? | | ?????????????????????????????????????????????????? | | ?????????????????????????????????????????????????? | | ?????????????????????????????????????????????????? | | ?????????????????????????????????????????????????? | +----------------------------------------------------+ Best States ------------- Heat Dissipation 84 Energy Generation 21 Energy Capacity 500 Matter Stores 300 Matter Capacity 300 Sight Range 18 Terrain Scan Density 10 Power Amplification 20 Armor Coverage 450 Resistance: KI 20 Weapon Shielding 66 Evasion (%) 41 Targeting Accuracy 8 Target Analysis 5 Recoil Reduction 6 Matter Filtering 30 Kinecelleration 30 Offensive Hacking 12 Item Schematics ----------------- Carbon-fiber Leg | -8/Materials | Scanalyzed Gauss Rifle | -8/Materials | Scanalyzed Med. Armor Plating | -7/Factory | Scanalyzed Fission Core | -7/Factory | Scanalyzed Hcp. Matter Pod | -7/Factory | Scanalyzed Robot Schematics ------------------ None Fabricated ------------ Nothing Repaired ---------- Nothing Alien Tech Used ----------------- None Achievements -------------- None Challenges ------------ None Game ------ Seed LayeredBlanketDetector Manual? 0 Play Time 02:37:00 Cumulative 268.5 hours Start 2025.08.01 @ 20:50:26 End 2025.08.02 @ 15:47:55 Sessions 3 Manual Loads 0 Difficulty Rogue Special Mode None Game No. 243 Rogue 243 Adventurer 0 Explorer 0 Win Type - Total 1 Types 1/0/0/0/0/0/0/0/0/0 Lore% 64 Gallery% 62 Achievement% 48 Wizard Run 0 Options --------- Layout 2 ASCII 1 Keyboard 1 Movement Numpad Keybinds 0 Fullscreen 2 Font 32/TamsynBold Map View 50x44 Zoom Use 0% Tactical HUD 1 Map Filters NONE Filters NONE Steam 1 RUN: 9a07350e-c432-4c4f-98de-9be7727d3f27